fUST/lending_fUST_20240918
["ID","MTS","AMOUNT","RATE_DAILY","PERIOD"]
[338447938,1726644004453,507.97,0.00024,120]
[338447939,1726644004616,529.53,0.00024,120]
[338447940,1726644004882,529.53,0.00024,120]
[338447941,1726644005103,500.0,0.00024,120]
[338447942,1726644005195,529.53,0.00024,120]
[338447943,1726644005282,500.0,0.00024,120]
[338447944,1726644005337,500.0,0.00024,120]
[338447945,1726644005463,529.53,0.00024,120]
[338447946,1726644005765,500.0,0.00024,120]
[338447947,1726644005816,529.76119992,0.00024,120]
[338447948,1726644007787,500.0,0.00024,120]
[338447949,1726644008484,500.0,0.00024,120]
[338447950,1726644010218,2638.21,0.00024,120]
[338447951,1726644010993,500.0,0.00024,120]
[338447952,1726644011486,500.0,0.00024,120]
[338447953,1726644012140,501.0258903,0.00024,120]
[338447954,1726644013286,500.0,0.00024,120]
[338447955,1726644013417,500.0,0.00024,120]
[338447956,1726644013545,500.0,0.00024,120]
[338447957,1726644014580,1452.99,0.00024,120]
[338447958,1726644014693,581.1,0.00024,120]
[338447959,1726644015142,931.96,0.00024,120]
[338447960,1726644015712,500.0,0.00024,120]
[338447961,1726644015803,771.72,0.00024,120]
[338447962,1726644016360,1064.13,0.00024,120]
[338447963,1726644016490,500.0,0.00024,120]
[338447964,1726644016974,2475.55,0.00024,120]
[338447965,1726644017026,500.0,0.00024,120]
[338447966,1726644017510,500.0,0.00024,120]
[338447967,1726644017995,625.65,0.00024,120]
[338447968,1726644020723,726.87,0.00024,120]
[338447969,1726644021876,500.0,0.00024,120]
[338447970,1726644022929,500.0,0.00024,120]
[338447971,1726644023282,500.0,0.00024,120]
[338447972,1726644023768,571.19,0.00024,120]
[338447973,1726644024643,500.0,0.00024,120]
[338447974,1726644024798,500.0,0.00024,120]
[338447975,1726644024912,500.0,0.00024,120]
[338447976,1726644025148,500.0,0.00024,120]
[338447977,1726644025397,500.0,0.00024,120]
[338447978,1726644025458,777.07,0.00024,120]
[338447979,1726644025649,500.0,0.00024,120]
[338447980,1726644025942,500.0,0.00024,120]
[338447981,1726644026313,500.0,0.00024,120]
[338447982,1726644026635,500.0,0.00024,120]
[338447983,1726644026930,500.0,0.00024,120]
[338447984,1726644027237,500.0,0.00024,120]
[338447985,1726644027285,500.0,0.00024,120]
[338447986,1726644027403,500.0,0.00024,120]
[338447987,1726644027454,717.19,0.00024,120]
[338447988,1726644027502,500.0,0.00024,120]
[338447989,1726644027770,500.0,0.00024,120]
[338447990,1726644028001,500.0,0.00024,120]
[338447991,1726644028257,1862.65,0.00024,120]
[338447992,1726644028311,500.0,0.00024,120]
[338447993,1726644028528,500.0,0.00024,120]
[338447994,1726644028770,500.0,0.00024,120]
[338447995,1726644029026,391.66560742,0.00024,120]
[338447996,1726644029442,500.0,0.00024,120]
[338447997,1726644029589,500.0,0.00024,120]
[338447998,1726644029743,500.0,0.00024,120]
[338447999,1726644030682,500.0,0.00024,120]
[338448000,1726644031045,1284.67,0.00024,120]
[338448001,1726644031454,10186.29,0.00024,120]
[338448002,1726644031510,500.0,0.00024,120]
[338448003,1726644032593,500.0,0.00024,120]
[338448004,1726644033452,500.0,0.00024,120]
[338448005,1726644034432,500.0,0.00024,120]
[338448006,1726644035378,500.0,0.00024,120]
[338448007,1726644035653,1807.44,0.00024,120]
[338448008,1726644036695,1453.89,0.00024,120]
[338448009,1726644038855,559.03,0.00024,120]
[338448010,1726644039695,9730.71,0.00024,120]
[338448011,1726644039922,3535.4,0.00024,120]
[338448012,1726644040958,500.0,0.00024,120]
[338448013,1726644042403,2550.23,0.00024,120]
[338448014,1726644042512,1297.77,0.00024,120]
[338448016,1726644042611,1018.24,0.00024,120]
[338448017,1726644042836,500.0,0.00024,120]
[338448018,1726644044614,903.73,0.00024,120]
[338448019,1726644044669,500.0,0.00024,120]
[338448020,1726644045335,500.0,0.00024,120]
[338448021,1726644046794,2243.33,0.00024,120]
[338448022,1726644048118,2264.13,0.00024,120]
[338448023,1726644048710,575.09232438,0.00024,120]
[338448024,1726644050607,500.0,0.00024,120]
[338448025,1726644051533,1672.23,0.00024,120]
[338448026,1726644053064,500.0,0.00024,120]
[338448027,1726644054579,779.44,0.00024,120]
[338448028,1726644055575,500.0,0.00024,120]
[338448029,1726644056059,500.0,0.00024,120]
[338448030,1726644056864,500.0,0.00024,120]
[338448031,1726644056933,500.0,0.00024,120]
[338448032,1726644057314,504.06,0.00024,120]
[338448033,1726644057506,2217.62,0.00024,120]
[338448034,1726644058461,500.0,0.00024,120]
[338448035,1726644059110,551.03,0.00024,120]
[338448036,1726644060699,2398.48,0.00024,120]
[338448037,1726644060745,500.0,0.00024,120]
[338448038,1726644062162,500.0,0.00024,120]
[338448039,1726644062401,507.54994266,0.00024,120]
[338448040,1726644062921,564.16,0.00024,120]
[338448041,1726644063097,453.65675514,0.00024,120]
[338448042,1726644063453,500.0,0.00024,120]
[338448043,1726644064298,646.33865991,0.00024,120]
[338448044,1726644066616,4613.96,0.00024,120]
[338448045,1726644066703,2706.18,0.00024,120]
[338448046,1726644066755,5043.94,0.00024,120]
[338448047,1726644066935,500.0,0.00024,120]
[338448049,1726644067202,500.0,0.00024,120]
[338448050,1726644067502,500.0,0.00024,120]
[338448051,1726644067739,532.31977263,0.00024,120]
[338448052,1726644067783,1202.17,0.00024,120]
[338448053,1726644069754,4996.56,0.00024,120]
[338448054,1726644071891,500.0,0.00024,120]
[338448055,1726644072326,1335.33,0.00024,120]
[338448056,1726644073749,719.73,0.00024,120]
[338448057,1726644074290,500.0,0.00024,120]
[338448058,1726644075553,500.0,0.00024,120]
[338448059,1726644075609,500.0,0.00024,120]
[338448060,1726644076484,500.0,0.00024,120]
[338448061,1726644076773,500.0,0.00024,120]
[338448062,1726644077018,500.0,0.00024,120]
[338448063,1726644077286,500.0,0.00024,120]
[338448064,1726644077582,500.0,0.00024,120]
[338448065,1726644077653,500.0,0.00024,120]
[338448066,1726644077846,500.0,0.00024,120]
[338448067,1726644078137,500.0,0.00024,120]
[338448068,1726644078248,500.0,0.00024,120]
[338448069,1726644078299,1466.0,0.00024,120]
[338448070,1726644078351,391.88589512,0.00024,120]
[338448071,1726644078416,500.0,0.00024,120]
[338448072,1726644078656,500.0,0.00024,120]
[338448073,1726644078899,500.0,0.00024,120]
[338448074,1726644079153,2385.39,0.00024,120]
[338448075,1726644079240,500.0,0.00024,120]
[338448076,1726644079549,500.0,0.00024,120]
[338448077,1726644079874,500.0,0.00024,120]
[338448078,1726644080146,500.0,0.00024,120]
[338448079,1726644080411,500.0,0.00024,120]
[338448080,1726644080696,500.0,0.00024,120]
[338448081,1726644081196,500.0,0.00024,120]
[338448082,1726644081251,500.0,0.00024,120]
[338448083,1726644081308,2596.4,0.00024,120]
[338448084,1726644081356,500.0,0.00024,120]
[338448085,1726644081520,500.0,0.00024,120]
[338448086,1726644081748,500.0,0.00024,120]
[338448087,1726644081838,500.0,0.00024,120]
[338448088,1726644082156,500.0,0.00024,120]
[338448089,1726644082316,795.17,0.00024,120]
[338448090,1726644082372,500.0,0.00024,120]
[338448091,1726644082464,500.0,0.00024,120]
[338448092,1726644082575,1584.62,0.00024,120]
[338448093,1726644082632,500.0,0.00024,120]
[338448094,1726644082856,480.90735757,0.00024,120]
[338448095,1726644083357,500.0,0.00024,120]
[338448096,1726644083544,500.0,0.00024,120]
[338448097,1726644084253,1951.01,0.00024,120]
[338448098,1726644086410,500.0,0.00024,120]
[338448099,1726644087825,500.0,0.00024,120]
[338448100,1726644087882,500.0,0.00024,120]
[338448101,1726644088096,500.0,0.00024,120]
[338448102,1726644088935,1351.43,0.00024,120]
[338448103,1726644091084,532.04378667,0.00024,120]
[338448104,1726644091162,1800.09,0.00024,120]
[338448105,1726644092496,670.11,0.00024,120]
[338448106,1726644092692,500.0,0.00024,120]
[338448107,1726644093096,833.88,0.00024,120]
[338448108,1726644093508,500.0,0.00024,120]
[338448109,1726644094086,4317.2,0.00024,120]
[338448110,1726644095370,1425.76,0.00024,120]
[338448111,1726644097103,500.0,0.00024,120]
[338448112,1726644099387,931.76,0.00024,120]
[338448113,1726644099541,3827.31,0.00024,120]
[338448114,1726644099721,500.0,0.00024,120]
[338448115,1726644100152,500.0,0.00024,120]
[338448116,1726644100543,1957.74,0.00024,120]
[338448117,1726644100812,2693.11,0.00024,120]
[338448118,1726644100954,814.3,0.00024,120]
[338448119,1726644101288,780.16,0.00024,120]
[338448120,1726644101419,500.0,0.00024,120]
[338448121,1726644102210,500.0,0.00024,120]
[338448122,1726644103285,500.0,0.00024,120]
[338448123,1726644104065,817.81,0.00024,120]
[338448124,1726644105267,500.0,0.00024,120]
[338448125,1726644105527,250.0,0.00024,120]
[338448126,1726644108609,500.0,0.00024,120]
[338448127,1726644108752,830.76,0.00024,120]
[338448128,1726644108798,500.0,0.00024,120]
[338448129,1726644108975,760.56,0.00024,120]
[338448130,1726644111097,2168.8,0.00024,120]
[338448131,1726644113286,2748.56,0.00024,120]
[338448132,1726644113689,500.0,0.00024,120]
[338448133,1726644115509,336.52708774,0.00024,120]
[338448134,1726644115560,500.0,0.00024,120]
[338448135,1726644117425,500.0,0.00024,120]
[338448136,1726644119745,2416.71,0.00024,120]
[338448137,1726644119879,664.22,0.00024,120]
[338448138,1726644120246,500.0,0.00024,120]
[338448139,1726644120504,500.0,0.00024,120]
[338448140,1726644120585,450.43159163,0.00024,120]
[338448141,1726644120637,500.0,0.00024,120]
[338448142,1726644121181,649.31,0.00024,120]
[338448143,1726644123929,670.63,0.00024,120]
[338448144,1726644124526,500.0,0.00024,120]
[338448145,1726644124595,500.0,0.00024,120]
[338448146,1726644124660,2382.46,0.00024,120]
[338448147,1726644125107,500.0,0.00024,120]
[338448148,1726644126424,2126.6,0.00024,120]
[338448149,1726644127050,502.87,0.00024,120]
[338448150,1726644128732,1534.35,0.00024,120]
[338448151,1726644128784,500.0,0.00024,120]
[338448152,1726644129961,500.0,0.00024,120]
[338448153,1726644131481,1103.97,0.00024,120]
[338448154,1726644135433,500.0,0.00024,120]
[338448155,1726644141796,500.0,0.00024,120]
[338448156,1726644144432,500.0,0.00024,120]
[338448157,1726644144635,1348.66,0.00024,120]
[338448158,1726644145548,935.36,0.00024,120]
[338448159,1726644146679,1006.61,0.00024,120]
[338448160,1726644148081,1625.25,0.00024,120]
[338448161,1726644148247,500.0,0.00024,120]
[338448162,1726644149552,500.0,0.00024,120]
[338448163,1726644150418,500.0,0.00024,120]
[338448164,1726644150599,538.05000947,0.00024,120]
[338448165,1726644150653,500.0,0.00024,120]
[338448166,1726644150999,2178.72,0.00024,120]
[338448167,1726644152167,866.34,0.00024,120]
[338448168,1726644152573,500.0,0.00024,120]
[338448169,1726644152635,500.0,0.00024,120]
[338448170,1726644153090,500.0,0.00024,120]
[338448171,1726644153170,500.0,0.00024,120]
[338448172,1726644153255,525.26,0.00024,120]
[338448173,1726644154318,2239.91,0.00024,120]
[338448174,1726644154723,500.0,0.00024,120]
[338448175,1726644154872,217.03620987,0.00024,120]
[338448176,1726644154963,1013.72,0.00024,120]
[338448177,1726644155411,1015.15,0.00024,120]
[338448178,1726644157032,500.0,0.00024,120]
[338448179,1726644157944,2820.14,0.00024,120]
[338448181,1726644158792,500.0,0.00024,120]
[338448182,1726644159265,500.0,0.00024,120]
[338448183,1726644160021,500.0,0.00024,120]
[338448184,1726644160149,500.0,0.00024,120]
[338448185,1726644161238,510.33806516,0.00024,120]
[338448186,1726644161901,500.0,0.00024,120]
[338448187,1726644162836,1809.63,0.00024,120]
[338448188,1726644162908,539.67,0.00024,120]
[338448189,1726644163105,1632.16,0.00024,120]
[338448190,1726644163202,708.0,0.00024,120]
[338448191,1726644163381,500.0,0.00024,120]
[338448192,1726644163435,500.0,0.00024,120]
[338448193,1726644163928,2897.37,0.00024,120]
[338448194,1726644164402,506.06267921,0.00024,120]
[338448195,1726644164489,500.0,0.00024,120]
[338448196,1726644165055,865.73,0.00024,120]
[338448197,1726644165433,622.97,0.00024,120]
[338448198,1726644166210,2444.55,0.00024,120]
[338448199,1726644166762,500.0,0.00024,120]
[338448200,1726644166811,500.0,0.00024,120]
[338448201,1726644167507,363.99161844,0.00024,120]
[338448202,1726644168275,704.39,0.00024,120]
[338448203,1726644168962,2094.72,0.00024,120]
[338448204,1726644169009,3973.39,0.00024,120]
[338448205,1726644169473,3148.9,0.00024,120]
[338448206,1726644171568,500.0,0.00024,120]
[338448207,1726644172698,500.0,0.00024,120]
[338448208,1726644173413,920.41,0.00024,120]
[338448209,1726644173855,500.0,0.00024,120]
[338448210,1726644175185,500.0,0.00024,120]
[338448211,1726644177262,1176.41,0.00024,120]
[338448212,1726644177444,500.0,0.00024,120]
[338448213,1726644177714,500.0,0.00024,120]
[338448214,1726644179636,500.0,0.00024,120]
[338448215,1726644180223,828.13,0.00024,120]
[338448216,1726644181482,500.0,0.00024,120]
[338448217,1726644181921,2289.77,0.00024,120]
[338448218,1726644182397,500.0,0.00024,120]
[338448219,1726644182827,391.84930936,0.00024,120]
[338448220,1726644182932,2136.96,0.00024,120]
[338448221,1726644182983,500.0,0.00024,120]
[338448222,1726644183272,1206.7,0.00024,120]
[338448223,1726644183391,500.0,0.00024,120]
[338448224,1726644185976,596.02,0.00024,120]
[338448225,1726644186036,500.0,0.00024,120]
[338448226,1726644187659,1495.69,0.00024,120]
[338448227,1726644188721,500.0,0.00024,120]
[338448228,1726644189182,10502.75,0.00024,120]
[338448229,1726644190201,1577.57,0.00024,120]
[338448230,1726644190463,500.0,0.00024,120]
[338448231,1726644191260,510.51,0.00024,120]
[338448232,1726644191952,10943.64,0.00024,120]
[338448233,1726644192227,610.53,0.00024,120]
[338448234,1726644192511,500.0,0.00024,120]
[338448235,1726644196791,1246.24,0.00024,120]
[338448236,1726644197638,1412.47,0.00024,120]
[338448237,1726644197778,500.0,0.00024,120]
[338448238,1726644198275,1439.01,0.00024,120]
[338448239,1726644198901,2670.4,0.00024,120]
[338448240,1726644199007,1301.78,0.00024,120]
[338448241,1726644200859,500.0,0.00024,120]
[338448242,1726644201768,500.0,0.00024,120]
[338448243,1726644202566,1143.89,0.00024,120]
[338448244,1726644203016,500.0,0.00024,120]
[338448245,1726644205401,500.0,0.00024,120]
[338448246,1726644206776,500.0,0.00024,120]
[338448247,1726644207159,666.07,0.00024,120]
[338448248,1726644207288,500.0,0.00024,120]
[338448249,1726644207580,971.81,0.00024,120]
[338448250,1726644209096,1128.52,0.00024,120]
[338448251,1726644210730,574.74,0.00024,120]
[338448252,1726644211665,500.0,0.00024,120]
[338448253,1726644211713,500.0,0.00024,120]
[338448254,1726644212303,500.0,0.00024,120]
[338448255,1726644212586,539.57,0.00024,120]
[338448256,1726644212775,641.26,0.00024,120]
[338448257,1726644213112,2427.22,0.00024,120]
[338448258,1726644213379,500.0,0.00024,120]
[338448259,1726644214013,500.0,0.00024,120]
[338448260,1726644214304,500.0,0.00024,120]
[338448261,1726644214388,620.77,0.00024,120]
[338448262,1726644215597,500.0,0.00024,120]
[338448263,1726644218095,1246.4,0.00024,120]
[338448264,1726644218375,833.41,0.00024,120]
[338448265,1726644219097,224.71121696,0.00024,120]
[338448266,1726644219930,777.22,0.00024,120]
[338448267,1726644220524,500.0,0.00024,120]
[338448268,1726644220931,683.76,0.00024,120]
[338448269,1726644222777,761.65,0.00024,120]
[338448270,1726644222860,500.0,0.00024,120]
[338448271,1726644225168,545.8,0.00024,120]
[338448272,1726644225415,218.33523406,0.00024,120]
[338448273,1726644225905,784.58,0.00024,120]
[338448274,1726644226626,500.0,0.00024,120]
[338448275,1726644227416,500.0,0.00024,120]
[338448276,1726644228445,500.0,0.00024,120]
[338448277,1726644228690,500.0,0.00024,120]
[338448278,1726644229102,500.0,0.00024,120]
[338448279,1726644229248,1019.79,0.00024,120]
[338448280,1726644229388,500.0,0.00024,120]
[338448281,1726644229652,500.0,0.00024,120]
[338448282,1726644229916,500.0,0.00024,120]
[338448283,1726644230175,500.0,0.00024,120]
[338448284,1726644230427,500.0,0.00024,120]
[338448285,1726644230629,597.41785131,0.00024,120]
[338448286,1726644230689,500.0,0.00024,120]
[338448287,1726644230950,500.0,0.00024,120]
[338448288,1726644231681,2173.65,0.00024,120]
[338448289,1726644231742,336.0,0.00024,120]
[338448290,1726644231790,500.0,0.00024,120]
[338448291,1726644232487,531.48384819,0.00024,120]
[338448292,1726644233686,575.19,0.00024,120]
[338448293,1726644233951,500.0,0.00024,120]
[338448294,1726644234033,1048.15,0.00024,120]
[338448295,1726644234252,500.0,0.00024,120]
[338448296,1726644234446,195.3997618,0.00024,120]
[338448297,1726644234504,500.0,0.00024,120]
[338448298,1726644236213,500.0,0.00024,120]
[338448299,1726644236892,500.0,0.00024,120]
[338448300,1726644236940,500.0,0.00024,120]
[338448301,1726644237282,858.07,0.00024,120]
[338448302,1726644237984,587.21,0.00024,120]
[338448303,1726644238275,2528.29,0.00024,120]
[338448304,1726644239489,4865.18,0.00024,120]
[338448305,1726644239847,500.0,0.00024,120]
[338448306,1726644240092,500.0,0.00024,120]
[338448307,1726644240154,500.0,0.00024,120]
[338448308,1726644240358,500.0,0.00024,120]
[338448309,1726644240652,500.0,0.00024,120]
[338448310,1726644240922,500.0,0.00024,120]
[338448311,1726644241190,500.0,0.00024,120]
[338448312,1726644241448,500.0,0.00024,120]
[338448313,1726644241779,500.0,0.00024,120]
[338448314,1726644242028,500.0,0.00024,120]
[338448315,1726644242297,500.0,0.00024,120]
[338448316,1726644242367,578.39,0.00024,120]
[338448317,1726644242551,500.0,0.00024,120]
[338448318,1726644242745,1761.51,0.00024,120]
[338448319,1726644242852,500.0,0.00024,120]
[338448320,1726644243053,500.0,0.00024,120]
[338448321,1726644243109,500.0,0.00024,120]
[338448322,1726644243903,500.0,0.00024,120]
[338448323,1726644243980,1655.46,0.00024,120]
[338448324,1726644244039,500.0,0.00024,120]
[338448325,1726644244170,500.0,0.00024,120]
[338448326,1726644244452,500.0,0.00024,120]
[338448327,1726644244521,500.0,0.00024,120]
[338448328,1726644244628,500.0,0.00024,120]
[338448329,1726644244711,500.0,0.00024,120]
[338448330,1726644244840,500.0,0.00024,120]
[338448331,1726644245128,500.0,0.00024,120]
[338448332,1726644245483,500.0,0.00024,120]
[338448333,1726644245542,504.1266409,0.00024,120]
[338448334,1726644245731,500.0,0.00024,120]
[338448335,1726644245785,500.0,0.00024,120]
[338448336,1726644245888,500.0,0.00024,120]
[338448337,1726644246064,500.0,0.00024,120]
[338448338,1726644246515,460.8,0.00024,120]
[338448339,1726644249184,1011.92,0.00024,120]
[338448340,1726644249232,545.15,0.00024,120]
[338448341,1726644249667,500.0,0.00024,120]
[338448342,1726644250349,527.11,0.00024,120]
[338448343,1726644250573,2460.21,0.00024,120]
[338448344,1726644250630,2199.48,0.00024,120]
[338448345,1726644253090,533.95482893,0.00024,120]
[338448346,1726644253143,500.0,0.00024,120]
[338448347,1726644253204,1302.57,0.00024,120]
[338448348,1726644256245,2372.4,0.00024,120]
[338448349,1726644258207,500.0,0.00024,120]
[338448350,1726644258362,500.0,0.00024,120]
[338448351,1726644258880,10223.99,0.00024,120]
[338448352,1726644259375,810.21,0.00024,120]
[338448353,1726644259785,1717.46,0.00024,120]
[338448354,1726644260361,821.78,0.00024,120]
[338448355,1726644261090,3075.22,0.00024,120]
[338448356,1726644261944,500.0,0.00024,120]
[338448357,1726644262763,1678.43,0.00024,120]
[338448358,1726644265860,935.09,0.00024,120]
[338448359,1726644266117,386.7671336,0.00024,120]
[338448360,1726644269348,500.0,0.00024,120]
[338448361,1726644269475,22064.95,0.00024,120]
[338448362,1726644269556,500.0,0.00024,120]
[338448363,1726644269604,500.0,0.00024,120]
[338448364,1726644270186,2169.79,0.00024,120]
[338448365,1726644270354,500.0,0.00024,120]
[338448366,1726644271807,500.0,0.00024,120]
[338448367,1726644272952,500.0,0.00024,120]
[338448368,1726644274163,1785.04,0.00024,120]
[338448369,1726644275725,764.34,0.00024,120]
[338448370,1726644276033,606.03,0.00024,120]
[338448371,1726644276085,500.0,0.00024,120]
[338448372,1726644276487,509.02148522,0.00024,120]
[338448373,1726644277429,1418.38,0.00024,120]
[338448374,1726644277476,4788.37,0.00024,120]
[338448375,1726644277674,453.8257959,0.00024,120]
[338448376,1726644278028,809.26,0.00024,120]
[338448377,1726644278309,809.26,0.00024,120]
[338448378,1726644278533,4421.71,0.00024,120]
[338448379,1726644278577,809.26,0.00024,120]
[338448380,1726644278849,809.26,0.00024,120]
[338448381,1726644279170,809.26,0.00024,120]
[338448382,1726644279362,1727.21,0.00024,120]
[338448383,1726644279412,809.26,0.00024,120]
[338448384,1726644279631,2125.22,0.00024,120]
[338448385,1726644279689,809.26,0.00024,120]
[338448386,1726644279958,809.26,0.00024,120]
[338448387,1726644280221,809.26,0.00024,120]
[338448388,1726644280546,809.26,0.00024,120]
[338448389,1726644280795,809.26,0.00024,120]
[338448390,1726644281180,809.26,0.00024,120]
[338448391,1726644281445,809.26,0.00024,120]
[338448392,1726644281711,809.26,0.00024,120]
[338448393,1726644281969,809.26,0.00024,120]
[338448394,1726644282239,809.26,0.00024,120]
[338448395,1726644282506,809.26,0.00024,120]
[338448396,1726644282769,809.26,0.00024,120]
[338448397,1726644283031,809.26,0.00024,120]
[338448398,1726644283291,809.26,0.00024,120]
[338448399,1726644283569,809.26,0.00024,120]
[338448400,1726644283864,809.26,0.00024,120]
[338448401,1726644283973,500.0,0.00024,120]
[338448402,1726644284529,809.26,0.00024,120]
[338448403,1726644284578,508.16464804,0.00024,120]
[338448404,1726644284786,809.26,0.00024,120]
[338448405,1726644286711,500.0,0.00024,120]
[338448406,1726644287143,1099.21,0.00024,120]
[338448407,1726644287800,903.12,0.00024,120]
[338448408,1726644288282,2092.53,0.00024,120]
[338448409,1726644288340,819.7,0.00024,120]
[338448410,1726644288412,2149.86,0.00024,120]
[338448411,1726644288512,1045.89,0.00024,120]
[338448412,1726644288770,500.0,0.00024,120]
[338448413,1726644288944,4833.78,0.00024,120]
[338448414,1726644289336,2736.42,0.00024,120]
[338448415,1726644290359,500.0,0.00024,120]
[338448416,1726644292398,9325.26,0.00024,120]
[338448417,1726644294359,684.03,0.00024,120]
[338448418,1726644294856,500.0,0.00024,120]
[338448419,1726644295844,2036.69,0.00024,120]
[338448420,1726644295980,660.15,0.00024,120]
[338448421,1726644296512,500.0,0.00024,120]
[338448422,1726644296596,2285.99,0.00024,120]
[338448423,1726644297466,500.0,0.00024,120]
[338448424,1726644298061,500.0,0.00024,120]
[338448425,1726644298269,500.0,0.00024,120]
[338448426,1726644299664,500.0,0.00024,120]
[338448427,1726644300202,535.68,0.00024,120]
[338448428,1726644300313,500.0,0.00024,120]
[338448429,1726644301942,1063.36,0.00024,120]
[338448430,1726644304354,500.0,0.00024,120]
[338448431,1726644304788,500.0,0.00024,120]
[338448432,1726644305066,706.82,0.00024,120]
[338448433,1726644305654,500.0,0.00024,120]
[338448434,1726644305709,661.39,0.00024,120]
[338448435,1726644305769,2040.17,0.00024,120]
[338448436,1726644305830,500.0,0.00024,120]
[338448437,1726644306955,515.88606014,0.00024,120]
[338448438,1726644307013,689.74,0.00024,120]
[338448439,1726644307614,724.4,0.00024,120]
[338448440,1726644307966,500.0,0.00024,120]